[Event "Titled Tuesday Blitz May 10 Early 2022"]
[White "Rohith Krishna S"]
[Black "Shimanov, Aleksandr"]
[WhiteFideId "46617051"]
[BlackFideId "4198603"]
[WhiteElo "2117"]
[BlackElo "2605"]
[Result "1/2-1/2"]
[Round "09"]
[TimeControl "180+1"]
[Date "2022.05.10"]
[WhiteClock "0:00:38"]
[BlackClock "0:00:02"]

1. Nf3 {[%clk 0:02:57]}  d5 {[%clk 0:02:56]} 2. d4 {[%clk 0:02:55]}  c6 {[%clk 0:02:50]} 3. c4 {[%clk 0:02:55]}  Nf6 {[%clk 0:02:50]} 4. Nc3 {[%clk 0:02:54]}  dxc4 {[%clk 0:02:50]} 5. a4 {[%clk 0:02:55]}  Bf5 {[%clk 0:02:50]} 6. e3 {[%clk 0:02:54]}  e6 {[%clk 0:02:49]} 7. Bxc4 {[%clk 0:02:55]}  Bb4 {[%clk 0:02:48]} 8. O-O {[%clk 0:02:55]}  Nbd7 {[%clk 0:02:46]} 9. Re1 {[%clk 0:02:55]}  O-O {[%clk 0:02:39]} 10. Bd2 {[%clk 0:02:54]}  a5 {[%clk 0:02:32]} 11. h3 {[%clk 0:02:50]}  h6 {[%clk 0:02:30]} 12. e4 {[%clk 0:02:47]}  Bh7 {[%clk 0:02:27]} 13. e5 {[%clk 0:02:47]}  Nd5 {[%clk 0:02:25]} 14. Nxd5 {[%clk 0:02:46]}  cxd5 {[%clk 0:02:16]} 15. Bxb4 {[%clk 0:02:45]}  axb4 {[%clk 0:02:16]} 16. Bb5 {[%clk 0:02:45]}  Nb8 {[%clk 0:02:14]} 17. Qb3 {[%clk 0:02:43]}  Qa5 {[%clk 0:02:12]} 18. Rec1 {[%clk 0:02:32]}  Na6 {[%clk 0:02:11]} 19. Ne1 {[%clk 0:02:26]}  Nc7 {[%clk 0:01:56]} 20. Bd3 {[%clk 0:02:23]}  Bxd3 {[%clk 0:01:53]} 21. Nxd3 {[%clk 0:02:22]}  Na6 {[%clk 0:01:53]} 22. Qc2 {[%clk 0:02:15]}  Qb6 {[%clk 0:01:51]} 23. Nc5 {[%clk 0:02:13]}  Rfc8 {[%clk 0:01:48]} 24. b3 {[%clk 0:01:54]}  Nxc5 {[%clk 0:01:44]} 25. dxc5 {[%clk 0:01:55]}  Qc7 {[%clk 0:01:45]} 26. Qd2 {[%clk 0:01:48]}  Qa5 {[%clk 0:01:40]} 27. Qe3 {[%clk 0:01:41]}  Rc6 {[%clk 0:01:37]} 28. f4 {[%clk 0:01:40]}  Rac8 {[%clk 0:01:36]} 29. f5 {[%clk 0:01:40]}  Rxc5 {[%clk 0:01:33]} 30. fxe6 {[%clk 0:01:41]}  fxe6 {[%clk 0:01:32]} 31. Rf1 {[%clk 0:01:38]}  Rc3 {[%clk 0:01:28]} 32. Qf4 {[%clk 0:01:38]}  Qc5+ {[%clk 0:01:28]} 33. Kh1 {[%clk 0:01:36]}  Qe7 {[%clk 0:01:27]} 34. Qg4 {[%clk 0:01:13]}  Re3 {[%clk 0:01:05]} 35. Rf6 {[%clk 0:00:59]}  h5 {[%clk 0:00:57]} 36. Qg6 {[%clk 0:00:56]}  Rxe5 {[%clk 0:00:33]} 37. Raf1 {[%clk 0:00:55]}  Rc7 {[%clk 0:00:23]} 38. R6f4 {[%clk 0:00:45]}  h4 {[%clk 0:00:08]} 39. a5 {[%clk 0:00:44]}  Rd7 {[%clk 0:00:07]} 40. Rc1 {[%clk 0:00:41]}  Rd8 {[%clk 0:00:06]} 41. Rcf1 {[%clk 0:00:40]}  Rd7 {[%clk 0:00:07]} 42. Rc1 {[%clk 0:00:40]}  Qd8 {[%clk 0:00:06]} 43. Rcf1 {[%clk 0:00:38]}  Qe7 {[%clk 0:00:02]} 1/2-1/2


[Site "https://www.chess.com"]

[Event "Titled Tuesday Blitz May 10 Early 2022"]
[White "Saldano Dayer, Horacio"]
[Black "Silvestre, Christian"]
[WhiteFideId "103411"]
[BlackFideId "30956269"]
[WhiteElo "2419"]
[BlackElo "2367"]
[Result "1-0"]
[Round "09"]
[TimeControl "180+1"]
[Date "2022.05.11"]
[WhiteClock "0:00:14"]
[BlackClock "0:00:03"]

1. e4 {[%clk 0:03:00]}  d5 {[%clk 0:02:55]} 2. exd5 {[%clk 0:02:59]}  Qxd5 {[%clk 0:02:56]} 3. Nc3 {[%clk 0:02:59]}  Qd6 {[%clk 0:02:56]} 4. d4 {[%clk 0:02:56]}  Nf6 {[%clk 0:02:54]} 5. Nf3 {[%clk 0:02:55]}  a6 {[%clk 0:02:54]} 6. Ne5 {[%clk 0:02:49]}  Nc6 {[%clk 0:02:51]} 7. Nxc6 {[%clk 0:02:44]}  Qxc6 {[%clk 0:02:44]} 8. d5 {[%clk 0:02:41]}  Qb6 {[%clk 0:02:37]} 9. Bc4 {[%clk 0:02:31]}  Bg4 {[%clk 0:02:36]} 10. Qd3 {[%clk 0:02:23]}  O-O-O {[%clk 0:02:33]} 11. O-O {[%clk 0:02:22]}  e6 {[%clk 0:02:27]} 12. Be3 {[%clk 0:02:15]}  Qa5 {[%clk 0:02:07]} 13. a3 {[%clk 0:02:05]}  exd5 {[%clk 0:02:06]} 14. b4 {[%clk 0:02:04]}  Bxb4 {[%clk 0:01:39]} 15. axb4 {[%clk 0:02:03]}  Qxb4 {[%clk 0:01:32]} 16. Ra4 {[%clk 0:01:21]}  Qd6 {[%clk 0:00:37]} 17. Bxa6 {[%clk 0:01:17]}  bxa6 {[%clk 0:00:36]} 18. Rxa6 {[%clk 0:01:16]}  Qb4 {[%clk 0:00:29]} 19. Rb1 {[%clk 0:01:12]}  Qc4 {[%clk 0:00:27]} 20. Qxc4 {[%clk 0:00:47]}  dxc4 {[%clk 0:00:28]} 21. f3 {[%clk 0:00:47]}  Be6 {[%clk 0:00:25]} 22. Bf4 {[%clk 0:00:40]}  Nd5 {[%clk 0:00:20]} 23. Nxd5 {[%clk 0:00:37]}  Bxd5 {[%clk 0:00:19]} 24. Ra7 {[%clk 0:00:35]}  Rd7 {[%clk 0:00:19]} 25. Rb5 {[%clk 0:00:29]}  Re8 {[%clk 0:00:09]} 26. Kf2 {[%clk 0:00:26]}  Bc6 {[%clk 0:00:06]} 27. Rc5 {[%clk 0:00:21]}  Kb8 {[%clk 0:00:05]} 28. Ra1 {[%clk 0:00:18]}  Bb7 {[%clk 0:00:04]} 29. Rb1 {[%clk 0:00:18]}  Kc8 {[%clk 0:00:04]} 30. Rcb5 {[%clk 0:00:17]}  c6 {[%clk 0:00:05]} 31. Ra5 {[%clk 0:00:15]}  f6 {[%clk 0:00:04]} 32. h4 {[%clk 0:00:15]}  h6 {[%clk 0:00:04]} 33. Ra8+ {[%clk 0:00:14]}  Bxa8 {[%clk 0:00:03]} 34. Rb8# {[%clk 0:00:14]} 1-0


[Site "https://www.chess.com"]

[Event "Titled Tuesday Blitz May 10 Early 2022"]
[White "Samadov, Read"]
[Black "Golubev, Mikhail"]
[WhiteFideId "13417444"]
[BlackFideId "14100983"]
[WhiteElo "2084"]
[BlackElo "2374"]
[Result "1-0"]
[Round "09"]
[TimeControl "180+1"]
[Date "2022.05.10"]
[WhiteClock "0:01:47"]
[BlackClock "0:00:02"]

1. d4 {[%clk 0:03:00]}  Nf6 {[%clk 0:02:59]} 2. c4 {[%clk 0:03:01]}  g6 {[%clk 0:02:59]} 3. Nc3 {[%clk 0:03:00]}  Bg7 {[%clk 0:03:00]} 4. e4 {[%clk 0:03:01]}  d6 {[%clk 0:03:00]} 5. f4 {[%clk 0:03:01]}  O-O {[%clk 0:02:59]} 6. Nf3 {[%clk 0:03:01]}  c5 {[%clk 0:02:59]} 7. d5 {[%clk 0:03:02]}  e6 {[%clk 0:02:59]} 8. Be2 {[%clk 0:03:02]}  exd5 {[%clk 0:02:59]} 9. cxd5 {[%clk 0:03:03]}  b5 {[%clk 0:02:57]} 10. e5 {[%clk 0:03:03]}  dxe5 {[%clk 0:02:55]} 11. fxe5 {[%clk 0:03:03]}  Ng4 {[%clk 0:02:55]} 12. Bg5 {[%clk 0:03:03]}  Qb6 {[%clk 0:02:52]} 13. O-O {[%clk 0:03:04]}  c4+ {[%clk 0:02:35]} 14. Kh1 {[%clk 0:03:04]}  Nd7 {[%clk 0:02:35]} 15. e6 {[%clk 0:03:02]}  fxe6 {[%clk 0:02:34]} 16. dxe6 {[%clk 0:03:03]}  Qxe6 {[%clk 0:02:21]} 17. Nxb5 {[%clk 0:03:03]}  Rb8 {[%clk 0:02:00]} 18. Rc1 {[%clk 0:03:00]}  Ne3 {[%clk 0:01:49]} 19. Bxe3 {[%clk 0:02:56]}  Qxe3 {[%clk 0:01:49]} 20. Bxc4+ {[%clk 0:02:56]}  Kh8 {[%clk 0:01:50]} 21. Nd6 {[%clk 0:02:56]}  Nb6 {[%clk 0:00:52]} 22. Nf7+ {[%clk 0:02:52]}  Kg8 {[%clk 0:00:52]} 23. Re1 {[%clk 0:02:16]}  Nxc4 {[%clk 0:00:51]} 24. Rxe3 {[%clk 0:02:09]}  Nxe3 {[%clk 0:00:52]} 25. Qd2 {[%clk 0:02:04]}  Nxg2 {[%clk 0:00:35]} 26. Nd6 {[%clk 0:01:51]}  Rxf3 {[%clk 0:00:04]} 27. Qd5+ {[%clk 0:01:49]}  Kh8 {[%clk 0:00:04]} 28. Qxf3 {[%clk 0:01:48]}  Be6 {[%clk 0:00:02]} 29. Qxg2 {[%clk 0:01:47]} 1-0


[Site "https://www.chess.com"]

[Event "Titled Tuesday Blitz May 10 Early 2022"]
[White "Shukhman, Anna"]
[Black "Polster, Christian"]
[WhiteFideId "54180058"]
[BlackFideId "12965081"]
[WhiteElo "1726"]
[BlackElo "2283"]
[Result "0-1"]
[Round "09"]
[TimeControl "180+1"]
[Date "2022.05.11"]
[WhiteClock "0:00:07"]
[BlackClock "0:00:03"]

1. e4 {[%clk 0:03:00]}  c5 {[%clk 0:02:58]} 2. Nf3 {[%clk 0:02:59]}  d6 {[%clk 0:02:57]} 3. d4 {[%clk 0:02:59]}  cxd4 {[%clk 0:02:58]} 4. Nxd4 {[%clk 0:02:59]}  Nf6 {[%clk 0:02:49]} 5. Nc3 {[%clk 0:02:57]}  a6 {[%clk 0:02:50]} 6. Qd3 {[%clk 0:02:55]}  e5 {[%clk 0:02:47]} 7. Nf5 {[%clk 0:02:55]}  Be6 {[%clk 0:02:32]} 8. Bg5 {[%clk 0:02:47]}  Bxf5 {[%clk 0:02:13]} 9. exf5 {[%clk 0:02:46]}  Nbd7 {[%clk 0:02:08]} 10. O-O-O {[%clk 0:02:44]}  Qa5 {[%clk 0:02:03]} 11. Bxf6 {[%clk 0:02:07]}  Nxf6 {[%clk 0:02:00]} 12. Qf3 {[%clk 0:02:03]}  Qc7 {[%clk 0:01:53]} 13. g4 {[%clk 0:02:01]}  Qc6 {[%clk 0:01:40]} 14. Bg2 {[%clk 0:01:50]}  Qxf3 {[%clk 0:01:31]} 15. Bxf3 {[%clk 0:01:49]}  O-O-O {[%clk 0:01:29]} 16. g5 {[%clk 0:01:45]}  Nd7 {[%clk 0:01:27]} 17. Bd5 {[%clk 0:01:41]}  Be7 {[%clk 0:01:23]} 18. h4 {[%clk 0:01:37]}  h6 {[%clk 0:01:18]} 19. Ne4 {[%clk 0:01:35]}  Rdf8 {[%clk 0:01:09]} 20. Bb3 {[%clk 0:01:25]}  Kc7 {[%clk 0:01:05]} 21. Rdg1 {[%clk 0:01:14]}  Kc6 {[%clk 0:00:54]} 22. Rh3 {[%clk 0:00:49]}  hxg5 {[%clk 0:00:44]} 23. Rc3+ {[%clk 0:00:48]}  Nc5 {[%clk 0:00:40]} 24. hxg5 {[%clk 0:00:48]}  d5 {[%clk 0:00:33]} 25. f6 {[%clk 0:00:43]}  gxf6 {[%clk 0:00:21]} 26. gxf6 {[%clk 0:00:41]}  dxe4 {[%clk 0:00:19]} 27. fxe7 {[%clk 0:00:40]}  Re8 {[%clk 0:00:19]} 28. Ba4+ {[%clk 0:00:34]}  b5 {[%clk 0:00:19]} 29. b4 {[%clk 0:00:34]}  bxa4 {[%clk 0:00:17]} 30. Rxc5+ {[%clk 0:00:34]}  Kd6 {[%clk 0:00:16]} 31. Rd1+ {[%clk 0:00:31]}  Ke6 {[%clk 0:00:16]} 32. Rc6+ {[%clk 0:00:31]}  Kxe7 {[%clk 0:00:16]} 33. Rxa6 {[%clk 0:00:31]}  f5 {[%clk 0:00:15]} 34. c4 {[%clk 0:00:30]}  Rh2 {[%clk 0:00:13]} 35. Rd2 {[%clk 0:00:26]}  Rd8 {[%clk 0:00:12]} 36. Rxd8 {[%clk 0:00:20]}  Kxd8 {[%clk 0:00:13]} 37. c5 {[%clk 0:00:19]}  Rxf2 {[%clk 0:00:12]} 38. b5 {[%clk 0:00:19]}  e3 {[%clk 0:00:13]} 39. Kd1 {[%clk 0:00:18]}  Rd2+ {[%clk 0:00:12]} 40. Ke1 {[%clk 0:00:17]}  Rc2 {[%clk 0:00:12]} 41. c6 {[%clk 0:00:17]}  f4 {[%clk 0:00:12]} 42. Ra8+ {[%clk 0:00:16]}  Kc7 {[%clk 0:00:12]} 43. Ra7+ {[%clk 0:00:16]}  Kb6 {[%clk 0:00:10]} 44. Rb7+ {[%clk 0:00:15]}  Ka5 {[%clk 0:00:10]} 45. c7 {[%clk 0:00:15]}  f3 {[%clk 0:00:09]} 46. Kd1 {[%clk 0:00:14]}  Rc5 {[%clk 0:00:06]} 47. b6 {[%clk 0:00:12]}  e2+ {[%clk 0:00:05]} 48. Kd2 {[%clk 0:00:12]}  Rd5+ {[%clk 0:00:05]} 49. Kc2 {[%clk 0:00:11]}  e1=Q {[%clk 0:00:05]} 50. c8=Q {[%clk 0:00:09]}  Rd2+ {[%clk 0:00:03]} 51. Kc3 {[%clk 0:00:07]}  Qc1# {[%clk 0:00:03]} 0-1


[Site "https://www.chess.com"]

[Event "Titled Tuesday Blitz May 10 Early 2022"]
[White "Silva, Mariana Sofia T."]
[Black "Dmitrenko, Viktor"]
[WhiteFideId "1911899"]
[BlackFideId "14110270"]
[WhiteElo "1825"]
[BlackElo "2218"]
[Result "0-1"]
[Round "09"]
[TimeControl "180+1"]
[Date "2022.05.11"]
[WhiteClock "0:00:15"]
[BlackClock "0:01:00"]

1. d4 {[%clk 0:03:00]}  d5 {[%clk 0:02:58]} 2. c4 {[%clk 0:02:58]}  Nc6 {[%clk 0:02:56]} 3. Nf3 {[%clk 0:02:53]}  Bg4 {[%clk 0:02:54]} 4. e3 {[%clk 0:02:48]}  e5 {[%clk 0:02:52]} 5. dxe5 {[%clk 0:02:35]}  dxc4 {[%clk 0:02:41]} 6. Qxd8+ {[%clk 0:02:24]}  Rxd8 {[%clk 0:02:39]} 7. Bxc4 {[%clk 0:02:23]}  Nxe5 {[%clk 0:02:36]} 8. Be2 {[%clk 0:02:12]}  Nd3+ {[%clk 0:02:33]} 9. Bxd3 {[%clk 0:02:11]}  Rxd3 {[%clk 0:02:33]} 10. Nbd2 {[%clk 0:01:58]}  Rd5 {[%clk 0:02:17]} 11. O-O {[%clk 0:01:53]}  Nf6 {[%clk 0:02:04]} 12. e4 {[%clk 0:01:49]}  Rd8 {[%clk 0:02:01]} 13. e5 {[%clk 0:01:46]}  Nd5 {[%clk 0:01:59]} 14. h3 {[%clk 0:01:34]}  Bf5 {[%clk 0:01:56]} 15. Nc4 {[%clk 0:01:28]}  Bd3 {[%clk 0:01:49]} 16. Na5 {[%clk 0:01:02]}  Bxf1 {[%clk 0:01:47]} 17. Kxf1 {[%clk 0:01:00]}  Rb8 {[%clk 0:01:47]} 18. Bg5 {[%clk 0:00:53]}  Bb4 {[%clk 0:01:38]} 19. Nb3 {[%clk 0:00:49]}  h6 {[%clk 0:01:36]} 20. Bh4 {[%clk 0:00:48]}  O-O {[%clk 0:01:28]} 21. Rd1 {[%clk 0:00:42]}  c6 {[%clk 0:01:28]} 22. Nbd4 {[%clk 0:00:39]}  Rfe8 {[%clk 0:01:24]} 23. Nf5 {[%clk 0:00:33]}  Bf8 {[%clk 0:01:15]} 24. Bg3 {[%clk 0:00:22]}  g6 {[%clk 0:01:07]} 25. N5d4 {[%clk 0:00:20]}  Rbd8 {[%clk 0:01:05]} 26. a3 {[%clk 0:00:19]}  Bg7 {[%clk 0:01:02]} 27. b4 {[%clk 0:00:16]}  a6 {[%clk 0:01:00]} 28. Nb3 {[%clk 0:00:15]} 0-1


[Site "https://www.chess.com"]

[Event "Titled Tuesday Blitz May 10 Early 2022"]
[White "Skytte, Rasmus"]
[Black "Broca Jimenez, Fernando"]
[WhiteFideId "1404210"]
[BlackFideId "5104742"]
[WhiteElo "2430"]
[BlackElo "2062"]
[Result "0-1"]
[Round "09"]
[TimeControl "180+1"]
[Date "2022.05.11"]
[WhiteClock "0:00:32"]
[BlackClock "0:00:23"]

1. e4 {[%clk 0:03:00]}  c5 {[%clk 0:02:59]} 2. Nf3 {[%clk 0:02:57]}  g6 {[%clk 0:02:59]} 3. d4 {[%clk 0:02:52]}  cxd4 {[%clk 0:03:00]} 4. Nxd4 {[%clk 0:02:51]}  Nc6 {[%clk 0:02:44]} 5. c4 {[%clk 0:02:50]}  Nf6 {[%clk 0:02:41]} 6. Nc3 {[%clk 0:02:48]}  d6 {[%clk 0:02:31]} 7. f3 {[%clk 0:02:44]}  Nxd4 {[%clk 0:02:29]} 8. Qxd4 {[%clk 0:02:39]}  Bg7 {[%clk 0:02:30]} 9. Be3 {[%clk 0:02:35]}  O-O {[%clk 0:02:21]} 10. Qd2 {[%clk 0:02:33]}  Be6 {[%clk 0:02:19]} 11. Be2 {[%clk 0:02:31]}  Qa5 {[%clk 0:02:19]} 12. O-O {[%clk 0:02:29]}  Rac8 {[%clk 0:02:15]} 13. Nd5 {[%clk 0:02:10]}  Qxd2 {[%clk 0:01:50]} 14. Nxe7+ {[%clk 0:02:08]}  Kh8 {[%clk 0:01:49]} 15. Bxd2 {[%clk 0:02:07]}  Rc7 {[%clk 0:01:15]} 16. Nd5 {[%clk 0:02:03]}  Nxd5 {[%clk 0:01:15]} 17. cxd5 {[%clk 0:02:00]}  Rc2 {[%clk 0:00:56]} 18. Rad1 {[%clk 0:01:25]}  Bd7 {[%clk 0:00:48]} 19. Bd3 {[%clk 0:00:50]}  Rxb2 {[%clk 0:00:44]} 20. a3 {[%clk 0:00:48]}  Ba4 {[%clk 0:00:30]} 21. Bb4 {[%clk 0:00:40]}  Bxd1 {[%clk 0:00:22]} 22. Rxd1 {[%clk 0:00:40]}  Bd4+ {[%clk 0:00:21]} 23. Kh1 {[%clk 0:00:38]}  Bc5 {[%clk 0:00:21]} 24. Bxc5 {[%clk 0:00:37]}  dxc5 {[%clk 0:00:22]} 25. d6 {[%clk 0:00:36]}  Rd8 {[%clk 0:00:20]} 26. Bc4 {[%clk 0:00:36]}  Rxd6 {[%clk 0:00:18]} 27. Bd5 {[%clk 0:00:33]}  c4 {[%clk 0:00:15]} 28. Rc1 {[%clk 0:00:31]}  c3 {[%clk 0:00:15]} 29. h4 {[%clk 0:00:29]}  c2 {[%clk 0:00:15]} 30. Kg1 {[%clk 0:00:28]}  Rxd5 {[%clk 0:00:14]} 31. exd5 {[%clk 0:00:26]}  Rb1 {[%clk 0:00:14]} 32. Rxb1 {[%clk 0:00:24]}  cxb1=Q+ {[%clk 0:00:15]} 33. Kf2 {[%clk 0:00:25]}  Qf5 {[%clk 0:00:15]} 34. Ke3 {[%clk 0:00:26]}  Qxd5 {[%clk 0:00:15]} 35. Kf4 {[%clk 0:00:25]}  Qb3 {[%clk 0:00:16]} 36. Kg3 {[%clk 0:00:26]}  Qxa3 {[%clk 0:00:17]} 37. Kf4 {[%clk 0:00:27]}  Qc5 {[%clk 0:00:17]} 38. Kg3 {[%clk 0:00:28]}  a5 {[%clk 0:00:18]} 39. Kf4 {[%clk 0:00:29]}  a4 {[%clk 0:00:19]} 40. Kg3 {[%clk 0:00:29]}  a3 {[%clk 0:00:20]} 41. Kf4 {[%clk 0:00:30]}  a2 {[%clk 0:00:20]} 42. Kg3 {[%clk 0:00:31]}  a1=Q {[%clk 0:00:21]} 43. Kf4 {[%clk 0:00:32]}  Qae5+ {[%clk 0:00:22]} 44. Kg4 {[%clk 0:00:32]}  Qcd4+ {[%clk 0:00:23]} 45. Kh3 {[%clk 0:00:33]}  Qdf4 {[%clk 0:00:22]} 46. h5 {[%clk 0:00:32]}  Qg3# {[%clk 0:00:23]} 0-1


[Site "https://www.chess.com"]

[Event "Titled Tuesday Blitz May 10 Early 2022"]
[White "Stankovic, Ivan G"]
[Black "Arabidze, Meri"]
[WhiteFideId "902837"]
[BlackFideId "13604040"]
[WhiteElo "2195"]
[BlackElo "2335"]
[Result "1-0"]
[Round "09"]
[TimeControl "180+1"]
[Date "2022.05.11"]
[WhiteClock "0:00:14"]
[BlackClock "0:00:02"]

1. e4 {[%clk 0:02:54]}  c5 {[%clk 0:03:00]} 2. c4 {[%clk 0:02:53]}  e6 {[%clk 0:02:59]} 3. Nc3 {[%clk 0:02:53]}  Nc6 {[%clk 0:02:59]} 4. g3 {[%clk 0:02:54]}  Nge7 {[%clk 0:02:58]} 5. Bg2 {[%clk 0:02:54]}  Nd4 {[%clk 0:02:58]} 6. d3 {[%clk 0:02:53]}  g6 {[%clk 0:02:58]} 7. Nge2 {[%clk 0:02:53]}  Nec6 {[%clk 0:02:57]} 8. O-O {[%clk 0:02:53]}  Bg7 {[%clk 0:02:57]} 9. Rb1 {[%clk 0:02:52]}  O-O {[%clk 0:02:56]} 10. a3 {[%clk 0:02:52]}  a5 {[%clk 0:02:51]} 11. Be3 {[%clk 0:02:51]}  d6 {[%clk 0:02:51]} 12. Nb5 {[%clk 0:02:51]}  Nxb5 {[%clk 0:02:44]} 13. cxb5 {[%clk 0:02:51]}  Nd4 {[%clk 0:02:44]} 14. Nxd4 {[%clk 0:02:51]}  cxd4 {[%clk 0:02:45]} 15. Bd2 {[%clk 0:02:52]}  a4 {[%clk 0:02:39]} 16. b3 {[%clk 0:02:52]}  axb3 {[%clk 0:02:35]} 17. Qxb3 {[%clk 0:02:51]}  e5 {[%clk 0:02:30]} 18. a4 {[%clk 0:02:51]}  Be6 {[%clk 0:02:25]} 19. Qa3 {[%clk 0:02:51]}  Re8 {[%clk 0:02:13]} 20. a5 {[%clk 0:02:45]}  d5 {[%clk 0:02:13]} 21. b6 {[%clk 0:02:36]}  dxe4 {[%clk 0:02:09]} 22. Bxe4 {[%clk 0:02:36]}  Bd5 {[%clk 0:02:09]} 23. Rfc1 {[%clk 0:01:57]}  Bxe4 {[%clk 0:02:03]} 24. dxe4 {[%clk 0:01:56]}  Bf8 {[%clk 0:01:58]} 25. Qb3 {[%clk 0:01:41]}  Re7 {[%clk 0:01:45]} 26. Bg5 {[%clk 0:01:31]}  Rxa5 {[%clk 0:01:38]} 27. Rc7 {[%clk 0:01:18]}  Qxc7 {[%clk 0:00:54]} 28. bxc7 {[%clk 0:01:16]}  Rxc7 {[%clk 0:00:55]} 29. Qb6 {[%clk 0:01:08]}  Rac5 {[%clk 0:00:51]} 30. Rb5 {[%clk 0:01:05]}  h6 {[%clk 0:00:43]} 31. Rxc5 {[%clk 0:01:02]}  Rxc5 {[%clk 0:00:42]} 32. Bxh6 {[%clk 0:00:47]}  d3 {[%clk 0:00:33]} 33. Bxf8 {[%clk 0:00:44]}  Rc1+ {[%clk 0:00:33]} 34. Kg2 {[%clk 0:00:44]}  d2 {[%clk 0:00:34]} 35. Qf6 {[%clk 0:00:32]}  Rg1+ {[%clk 0:00:21]} 36. Kh3 {[%clk 0:00:30]}  Kxf8 {[%clk 0:00:17]} 37. Qd8+ {[%clk 0:00:30]}  Kg7 {[%clk 0:00:17]} 38. Qxd2 {[%clk 0:00:30]}  Rb1 {[%clk 0:00:15]} 39. Qc2 {[%clk 0:00:30]}  Rb6 {[%clk 0:00:14]} 40. Qc3 {[%clk 0:00:29]}  Re6 {[%clk 0:00:13]} 41. f4 {[%clk 0:00:27]}  b6 {[%clk 0:00:13]} 42. f5 {[%clk 0:00:27]}  Re8 {[%clk 0:00:12]} 43. Qc6 {[%clk 0:00:26]}  Rh8+ {[%clk 0:00:07]} 44. Kg4 {[%clk 0:00:25]}  gxf5+ {[%clk 0:00:07]} 45. exf5 {[%clk 0:00:25]}  Rxh2 {[%clk 0:00:07]} 46. Qxb6 {[%clk 0:00:23]}  Rd2 {[%clk 0:00:06]} 47. Qc7 {[%clk 0:00:20]}  Re2 {[%clk 0:00:03]} 48. Kf3 {[%clk 0:00:19]}  Re1 {[%clk 0:00:03]} 49. Qc3 {[%clk 0:00:18]}  Rf1+ {[%clk 0:00:02]} 50. Kg4 {[%clk 0:00:17]}  Kf6 {[%clk 0:00:02]} 51. Qc6+ {[%clk 0:00:16]}  Kg7 {[%clk 0:00:02]} 52. Qc3 {[%clk 0:00:15]}  Kf6 {[%clk 0:00:02]} 53. Qc6+ {[%clk 0:00:15]}  Kg7 {[%clk 0:00:02]} 54. Qb5 {[%clk 0:00:15]}  Rf2 {[%clk 0:00:02]} 55. Qxe5+ {[%clk 0:00:15]}  Kh7 {[%clk 0:00:02]} 56. f6 {[%clk 0:00:14]}  Kg6 {[%clk 0:00:02]} 57. Qg5+ {[%clk 0:00:14]}  Kh7 {[%clk 0:00:02]} 58. Qg7# {[%clk 0:00:14]} 1-0


[Site "https://www.chess.com"]

[Event "Titled Tuesday Blitz May 10 Early 2022"]
[White "Tanenbaum, Zachary"]
[Black "Shuvalov, Evgenij"]
[WhiteFideId "2060850"]
[BlackFideId "4187237"]
[WhiteElo "2168"]
[BlackElo "2053"]
[Result "0-1"]
[Round "09"]
[TimeControl "180+1"]
[Date "2022.05.11"]
[WhiteClock "0:00:07"]
[BlackClock "0:00:41"]

1. e4 {[%clk 0:02:59]}  e6 {[%clk 0:03:00]} 2. d4 {[%clk 0:02:59]}  d5 {[%clk 0:03:00]} 3. Nc3 {[%clk 0:02:59]}  Bb4 {[%clk 0:02:59]} 4. exd5 {[%clk 0:02:59]}  exd5 {[%clk 0:02:59]} 5. Bd3 {[%clk 0:03:00]}  Nc6 {[%clk 0:02:59]} 6. a3 {[%clk 0:03:00]}  Bxc3+ {[%clk 0:02:58]} 7. bxc3 {[%clk 0:03:00]}  Nge7 {[%clk 0:02:59]} 8. Nf3 {[%clk 0:03:00]}  Bg4 {[%clk 0:02:58]} 9. Rb1 {[%clk 0:02:58]}  b6 {[%clk 0:02:58]} 10. O-O {[%clk 0:02:53]}  Qd7 {[%clk 0:02:56]} 11. h3 {[%clk 0:02:51]}  Bf5 {[%clk 0:02:52]} 12. Bb5 {[%clk 0:02:46]}  f6 {[%clk 0:02:50]} 13. Re1 {[%clk 0:02:46]}  Kf7 {[%clk 0:02:33]} 14. c4 {[%clk 0:02:22]}  a6 {[%clk 0:02:24]} 15. cxd5 {[%clk 0:01:41]}  axb5 {[%clk 0:02:23]} 16. dxc6 {[%clk 0:01:41]}  Qxc6 {[%clk 0:02:13]} 17. Rb2 {[%clk 0:00:36]}  Rhe8 {[%clk 0:02:08]} 18. d5 {[%clk 0:00:28]}  Nxd5 {[%clk 0:01:47]} 19. Rxe8 {[%clk 0:00:27]}  Rxe8 {[%clk 0:01:48]} 20. Nd4 {[%clk 0:00:27]}  Qd7 {[%clk 0:01:48]} 21. Rxb5 {[%clk 0:00:18]}  Nc3 {[%clk 0:01:40]} 22. Qf3 {[%clk 0:00:03]}  Nxb5 {[%clk 0:01:32]} 23. Nxf5 {[%clk 0:00:04]}  Re1+ {[%clk 0:01:28]} 24. Kh2 {[%clk 0:00:04]}  Rxc1 {[%clk 0:01:28]} 25. Qg4 {[%clk 0:00:04]}  Kf8 {[%clk 0:01:16]} 26. Qb4+ {[%clk 0:00:03]}  Nd6 {[%clk 0:01:15]} 27. Ne3 {[%clk 0:00:03]}  Qe6 {[%clk 0:01:10]} 28. Qh4 {[%clk 0:00:03]}  Kg8 {[%clk 0:01:09]} 29. Ng4 {[%clk 0:00:02]}  Rxc2 {[%clk 0:01:04]} 30. Qh5 {[%clk 0:00:02]}  Rc5 {[%clk 0:01:02]} 31. Qh4 {[%clk 0:00:02]}  h5 {[%clk 0:01:00]} 32. Ne3 {[%clk 0:00:02]}  Qe5+ {[%clk 0:00:58]} 33. g3 {[%clk 0:00:02]}  Nf5 {[%clk 0:00:56]} 34. Qxh5 {[%clk 0:00:01]}  Nxe3 {[%clk 0:00:55]} 35. Qg6 {[%clk 0:00:02]}  Nf5 {[%clk 0:00:54]} 36. Qh5 {[%clk 0:00:02]}  Nxg3 {[%clk 0:00:50]} 37. Qf3 {[%clk 0:00:01]}  Nf1+ {[%clk 0:00:48]} 38. Kg2 {[%clk 0:00:02]}  Nd2 {[%clk 0:00:48]} 39. Qg4 {[%clk 0:00:02]}  Qe4+ {[%clk 0:00:47]} 40. Kg3 {[%clk 0:00:01]}  Qxg4+ {[%clk 0:00:47]} 41. hxg4 {[%clk 0:00:02]}  Rc3+ {[%clk 0:00:47]} 42. f3 {[%clk 0:00:02]}  Rxf3+ {[%clk 0:00:47]} 43. Kh4 {[%clk 0:00:02]}  Rxa3 {[%clk 0:00:45]} 44. Kh5 {[%clk 0:00:02]}  Kf7 {[%clk 0:00:45]} 45. g5 {[%clk 0:00:02]}  g6+ {[%clk 0:00:45]} 46. Kg4 {[%clk 0:00:02]}  f5+ {[%clk 0:00:45]} 47. Kh4 {[%clk 0:00:02]}  Nf3+ {[%clk 0:00:44]} 48. Kg3 {[%clk 0:00:03]}  Nxg5+ {[%clk 0:00:44]} 49. Kh4 {[%clk 0:00:01]}  Rh3+ {[%clk 0:00:42]} 50. Kxg5 {[%clk 0:00:02]}  Rh5+ {[%clk 0:00:43]} 51. Kf4 {[%clk 0:00:02]}  b5 {[%clk 0:00:43]} 52. Ke5 {[%clk 0:00:02]}  b4 {[%clk 0:00:43]} 53. Kd4 {[%clk 0:00:03]}  f4 {[%clk 0:00:43]} 54. Kc4 {[%clk 0:00:03]}  c5 {[%clk 0:00:43]} 55. Kd3 {[%clk 0:00:03]}  Rf5 {[%clk 0:00:42]} 56. Ke2 {[%clk 0:00:03]}  Kf6 {[%clk 0:00:43]} 57. Kf3 {[%clk 0:00:03]}  b3 {[%clk 0:00:43]} 58. Ke2 {[%clk 0:00:04]}  b2 {[%clk 0:00:43]} 59. Kd2 {[%clk 0:00:03]}  b1=Q {[%clk 0:00:43]} 60. Kc3 {[%clk 0:00:04]}  Qc1+ {[%clk 0:00:41]} 61. Kd3 {[%clk 0:00:03]}  Rd5+ {[%clk 0:00:41]} 62. Ke4 {[%clk 0:00:03]}  Rd4+ {[%clk 0:00:41]} 63. Kf3 {[%clk 0:00:03]}  Qe3+ {[%clk 0:00:41]} 64. Kg2 {[%clk 0:00:04]}  Qg3+ {[%clk 0:00:41]} 65. Kf1 {[%clk 0:00:04]}  Rd1+ {[%clk 0:00:40]} 66. Ke2 {[%clk 0:00:05]}  Qd3+ {[%clk 0:00:41]} 67. Kf2 {[%clk 0:00:05]}  Rf1+ {[%clk 0:00:41]} 68. Kg2 {[%clk 0:00:06]}  Qf3+ {[%clk 0:00:41]} 69. Kh2 {[%clk 0:00:07]}  Rh1# {[%clk 0:00:41]} 0-1


[Site "https://www.chess.com"]